lending/lending_fUSD_20250408
["ID","MTS","AMOUNT","RATE_DAILY","PERIOD"]
[357560970,1744156250116,-2000.0,0.00042,2]
[357560971,1744156250126,-150.0,0.00042465,120]
[357560972,1744156250135,-1000.0,0.000425,120]
[357560973,1744156250145,-153.16,0.00042583,2]
[357560974,1744156250154,-518.10179991,0.00042688,30]
[357560975,1744156250164,-151.0,0.0004307,14]
[357560976,1744156250173,-151.0,0.0004307,14]
[357560977,1744156250183,-151.0,0.0004307,14]
[357560978,1744156250192,-5000.0,0.000432,120]
[357560979,1744156250202,-218.67678301,0.000432,30]
[357560980,1744156250211,-418.0,0.000434,100]
[357560981,1744156250220,-2941.0,0.00043425,120]
[357560982,1744156250229,-1515.20187447,0.00043468,30]
[357560983,1744156250239,-819.32291942,0.00043468,30]
[357560984,1744156250249,-5000.0,0.000435,120]
[357560985,1744156250258,-1500.0,0.000435,120]
[357560986,1744156250268,-4973.0,0.000435,120]
[357560987,1744156250277,-1000.0,0.000435,120]
[357560988,1744156250287,-1500.0,0.000435,120]
[357560989,1744156250296,-26000.0,0.00043502,30]
[357560990,1744156250305,-151.0,0.00043502,14]
[357560991,1744156250315,-151.0,0.00043502,14]
[357560992,1744156250324,-151.0,0.00043502,14]
[357560993,1744156250334,-151.0,0.00043502,14]
[357560994,1744156250343,-151.47,0.00043503,2]
[357560995,1744156250354,-150.0,0.00043503,2]
[357560996,1744156250363,-155.98517,0.00043513,14]
[357560997,1744156250373,-151.0,0.00043513,14]
[357560998,1744156250382,-151.0,0.00043513,14]
[357560999,1744156250391,-151.0,0.00043513,14]
[357561000,1744156250402,-151.0,0.00043513,14]
[357561001,1744156250411,-239.324051,0.00043513,14]
[357561002,1744156250420,-151.0,0.00043513,14]
[357561003,1744156250429,-151.0,0.00043513,14]
[357561004,1744156250439,-151.0,0.00043513,14]
[357561005,1744156250448,-151.0,0.00043513,14]
[357561006,1744156250457,-258.0384,0.00043513,14]
[357561007,1744156250467,-151.0,0.00043513,14]
[357561008,1744156250475,-151.0,0.00043513,14]
[357561009,1744156250485,-151.0,0.00043513,14]
[357561010,1744156250494,-244.769885,0.00043513,14]
[357561011,1744156250503,-244.769885,0.00043513,14]
[357561012,1744156250512,-151.0,0.00043513,14]
[357561013,1744156250521,-261.19549,0.00043513,14]
[357561014,1744156250530,-261.19549,0.00043513,14]
[357561015,1744156250541,-638.07164523,0.00043533,2]
[357561016,1744156250550,-7775.82275651,0.00043533,2]
[357561017,1744156250559,-78722.94797454,0.00043533,2]
[357561018,1744156250569,-9319.49036069,0.00043533,5]
[357561019,1744156250579,-14040.51409586,0.00043533,2]
[357561020,1744156250588,-219.93225015,0.00043533,2]
[357561021,1744156250597,-10181.29413792,0.00043533,2]
[357561022,1744156250607,-8129.32644477,0.00043533,2]
[357561023,1744156250616,-1702.68430918,0.00043533,2]
[357561024,1744156250625,-1428.11440893,0.00043533,2]
[357561025,1744156250634,-202.36761947,0.00043533,2]
[357561026,1744156250643,-498.19328309,0.00043533,2]
[357561027,1744156250653,-282.12744098,0.00043533,2]
[357561028,1744156250662,-5672.14773598,0.00043533,2]
[357561029,1744156250671,-750.24513697,0.00043533,2]
[357561030,1744156250680,-1011.31933589,0.00043533,2]
[357561031,1744156250689,-1104.44802712,0.00043533,2]
[357561032,1744156250698,-162.91,0.00043533,2]
[357561033,1744156250708,-161.38174891,0.00043533,2]
[357561034,1744156250717,-870.61049392,0.00043533,2]
[357561035,1744156250727,-2168.69302487,0.00043533,2]
[357561036,1744156250736,-150.0,0.00043533,2]
[357561037,1744156250745,-21280.30455871,0.00043533,2]
[357561038,1744156250754,-463.28985446,0.00043533,2]
[357561039,1744156250764,-6901.50127875,0.00043533,2]
[357561040,1744156250776,-1665.56919967,0.00043533,2]
[357561041,1744156250851,-600.07013552,0.00043533,2]
[357561042,1744156250861,-151.0,0.00043533,14]
[357561043,1744156250870,-2407.628196,0.00043533,14]
[357561044,1744156250879,-2407.628196,0.00043533,14]
[357561045,1744156250888,-372.762222,0.00043533,14]
[357561046,1744156250897,-372.762222,0.00043533,14]
[357561047,1744156250906,-151.0,0.00043533,14]
[357561048,1744156250915,-1041.35,0.000436,14]
[357561049,1744156250925,-154.597576,0.000436,14]
[357561050,1744156250933,-151.0,0.000436,14]
[357561051,1744156250943,-151.0,0.000436,14]
[357561052,1744156250952,-3213.63711727,0.00043648,2]
[357561053,1744156250961,-2112.39518152,0.0004367,5]
[357561054,1744156250970,-150.0,0.00043835,120]
[357561055,1744156250983,-502.96675615,0.00044,60]
[357561056,1744156250992,-151.0,0.00044,14]
[357561057,1744156251001,-174.800116,0.00044,14]
[357561058,1744156251010,-174.800116,0.00044,14]
[357561059,1744156251021,-599.47474527,0.00044009,15]
[357561060,1744156251031,-16580.87593236,0.00044009,15]
[357561061,1744156251040,-152.21,0.000442,36]
[357561062,1744156251049,-152.21,0.000442,36]
[357561063,1744156251059,-152.21,0.000442,36]
[357561064,1744156251068,-152.21,0.000442,36]
[357561065,1744156251077,-152.21,0.000442,36]
[357561066,1744156251086,-152.21,0.000442,36]
[357561067,1744156251096,-152.21,0.000442,36]
[357561068,1744156251105,-181.19,0.00044239,2]
[357561069,1744156251114,-483.77,0.0004425,2]
[357561070,1744156251123,-150.0,0.000443,2]
[357561071,1744156251133,-193.91,0.00044628,120]
[357561072,1744156251142,-2321.26549537,0.00045,14]
[357561073,1744156251151,-249.999999,0.00045,2]
[357561074,1744156251161,-168.42,0.00045205,2]
[357561075,1744156251170,-2532.53314117,0.00045679,120]
[357561076,1744156251179,-170.73,0.00046301,2]
[357561077,1744156251188,-896.06090554,0.00046387,2]
[357561078,1744156251198,-483.77,0.00046514,2]
[357561079,1744156251207,-291.01202972,0.00046589,24]
[357561080,1744156251216,-1360.4881041,0.000468,10]
[357561081,1744156251226,-47609.66461025,0.00046888,120]
[357561082,1744156251235,-1041.35,0.000471,14]
[357561083,1744156251246,-1539.0,0.000473,7]
[357561084,1744156251257,-599.47474527,0.00047453,15]
[357561085,1744156251268,-16580.87593236,0.00047453,15]
[357561086,1744156251280,-687.07384335,0.000475,30]
[357561087,1744156251290,-9500.4018,0.00047572,2]
[357561088,1744156251299,-5237.19913423,0.000476,2]
[357561089,1744156251309,-179.614296,0.000476,14]
[357561090,1744156251318,-151.0,0.000476,14]
[357561091,1744156251328,-202.36480308,0.00047666,10]
[357561092,1744156251337,-200.0,0.00047672,7]
[357561093,1744156251346,-151.0,0.00047702,14]
[357561094,1744156251356,-151.0,0.00047702,14]
[357561095,1744156251365,-151.0,0.00047702,14]
[357561096,1744156251374,-167.624637,0.00047702,14]
[357561097,1744156251384,-151.0,0.00047755,14]
[357561098,1744156251394,-153.81487,0.00047755,14]
[357561099,1744156251403,-151.0,0.00047755,14]
[357561100,1744156251412,-151.0,0.00047755,14]
[357561101,1744156251422,-151.0,0.00047755,14]
[357561102,1744156251431,-151.0,0.00047755,14]
[357561103,1744156251441,-2598.54541699,0.00047777,2]
[357561104,1744156251451,-151.0,0.00047781,14]
[357561105,1744156251460,-151.0,0.0004779,14]
[357561106,1744156251470,-151.0,0.00047798,14]
[357561107,1744156251479,-174.800116,0.00047798,14]
[357561108,1744156251489,-174.800116,0.00047798,14]
[357561109,1744156251498,-166.66,0.0004781,2]
[357561110,1744156251507,-151.0,0.00047957,14]
[357561111,1744156251519,-12500.0,0.00047965,10]
[357561112,1744156251528,-12500.0,0.00047974,10]
[357561113,1744156251537,-2212.36987155,0.00047982,10]
[357561114,1744156251890,-10287.63012845,0.00047982,10]
[357561115,1744156251899,-12500.0,0.00047991,10]
[357561116,1744156251909,-12500.0,0.00048,2]
[357561117,1744156251918,-695.89901283,0.00048,120]
[357561118,1744156251928,-30752.06475555,0.00048,2]
[357561119,1744156251938,-12500.0,0.00048,10]
[357561120,1744156251947,-12500.0,0.00048,10]
[357561121,1744156251957,-151.0,0.00048,14]
[357561122,1744156251966,-151.0,0.00048,14]
[357561123,1744156251977,-151.0,0.00048,14]
[357561124,1744156251988,-150.0,0.00048003,7]
[357561125,1744156251998,-150.0,0.00048016,7]
[357561126,1744156252007,-12500.0,0.0004802,2]
[357561127,1744156252017,-12500.0,0.0004802,2]
[357561128,1744156252028,-12496.72,0.00048025,10]
[357561129,1744156252037,-150.0,0.00048027,7]
[357561130,1744156252046,-150.0,0.00048037,7]
[357561131,1744156252057,-150.0,0.00048047,7]
[357561132,1744156252068,-150.0,0.00048108,7]
[357561133,1744156252077,-150.0,0.00048143,7]
[357561134,1744156252087,-151.0,0.00048207,14]
[357561135,1744156252097,-2407.628196,0.00048207,14]
[357561136,1744156252107,-2407.628196,0.00048207,14]
[357561137,1744156252117,-372.762222,0.00048207,14]
[357561138,1744156252127,-372.762222,0.00048207,14]
[357561139,1744156252137,-216.30366,0.00048207,14]
[357561140,1744156252146,-851.0,0.00048207,2]
[357561141,1744156252156,-3957.0,0.00048207,2]
[357561142,1744156252165,-151.0,0.00048207,2]
[357561143,1744156252175,-150.0,0.0004823,7]
[357561144,1744156252184,-150.0,0.00048238,7]
[357561145,1744156252193,-150.0,0.00048239,7]
[357561146,1744156252203,-150.0,0.00048248,7]
[357561147,1744156252212,-150.0,0.00048249,7]
[357561148,1744156252222,-150.0,0.0004828,7]
[357561149,1744156252231,-150.0,0.00048299,7]
[357561150,1744156252240,-2340.82,0.000483,60]
[357561151,1744156252250,-244.769885,0.000483,14]
[357561152,1744156252259,-244.769885,0.000483,14]
[357561153,1744156252271,-151.0,0.000483,14]
[357561154,1744156252280,-261.19549,0.000483,14]
[357561155,1744156252290,-261.19549,0.000483,14]
[357561156,1744156252299,-150.0,0.00048311,7]
[357561157,1744156252309,-150.0,0.00048324,7]
[357561158,1744156252319,-150.0,0.00048336,7]
[357561159,1744156252328,-150.0,0.00048352,7]
[357561160,1744156252338,-150.0,0.00048359,7]
[357561161,1744156252349,-150.0,0.00048363,7]
[357561162,1744156252358,-150.0,0.0004839,7]
[357561163,1744156252368,-150.0,0.00048413,7]
[357561164,1744156252377,-150.0,0.00048438,7]
[357561165,1744156252387,-150.0,0.00048458,7]
[357561166,1744156252396,-150.0,0.00048465,7]
[357561167,1744156252405,-150.0,0.0004847,7]
[357561168,1744156252415,-150.0,0.00048489,7]
[357561169,1744156252424,-658.0910263,0.0004849,4]
[357561170,1744156252433,-150.0,0.00048514,7]
[357561171,1744156252443,-150.0,0.00048542,7]
[357561172,1744156252452,-150.0,0.00048592,7]
[357561173,1744156252461,-150.0,0.00048601,7]
[357561174,1744156252470,-150.0,0.00048619,7]
[357561175,1744156252480,-150.0,0.00048651,7]
[357561176,1744156252489,-150.0,0.00048661,7]
[357561177,1744156252499,-150.0,0.00048665,7]
[357561178,1744156252508,-150.0,0.00048713,7]
[357561179,1744156252518,-150.0,0.00048731,7]
[357561180,1744156252528,-150.0,0.00048743,7]
[357561181,1744156252537,-150.0,0.00048746,7]
[357561182,1744156252547,-483.77,0.00048778,2]
[357561183,1744156252556,-1041.35,0.000488,14]
[357561184,1744156252565,-150.0,0.00048805,7]
[357561185,1744156252574,-150.0,0.00048825,7]
[357561186,1744156252584,-2340.82,0.000489,60]
[357561187,1744156252593,-3100.0,0.000489,17]
[357561188,1744156252603,-150.0,0.00048907,7]
[357561189,1744156252612,-150.0,0.00048929,7]
[357561190,1744156252622,-150.0,0.00048934,7]
[357561191,1744156252632,-150.0,0.00048946,7]
[357561192,1744156252641,-150.0,0.00048969,7]
[357561193,1744156252651,-150.0,0.0004898,7]
[357561194,1744156252660,-150.0,0.00048984,7]
[357561195,1744156252669,-150.0,0.00048986,7]
[357561196,1744156252678,-150.0,0.00048997,3]
[357561197,1744156252688,-2015.57,0.00049,90]
[357561198,1744156252697,-150.0,0.00049052,7]
[357561199,1744156252706,-150.0,0.00049068,7]
[357561200,1744156252716,-150.0,0.00049085,7]
[357561201,1744156252725,-150.0,0.00049086,7]
[357561202,1744156252734,-193.91,0.00049106,120]
[357561203,1744156252743,-150.0,0.00049156,7]
[357561204,1744156252752,-150.0,0.00049158,7]
[357561205,1744156252761,-150.0,0.00049173,7]
[357561206,1744156252771,-150.0,0.00049185,7]
[357561207,1744156252781,-150.0,0.00049192,7]
[357561208,1744156252790,-150.0,0.00049193,14]
[357561209,1744156252799,-150.0,0.00049195,7]
[357561210,1744156252808,-5000.0,0.000492,35]
[357561211,1744156252818,-969.88722831,0.000492,3]
[357561212,1744156252826,-165.84807224,0.00049215,2]
[357561213,1744156252836,-188.09187883,0.00049215,2]
[357561214,1744156252845,-150.0,0.00049247,7]
[357561215,1744156252854,-150.0,0.00049251,7]
[357561216,1744156252863,-150.0,0.00049263,7]
[357561217,1744156252872,-150.0,0.00049314,3]
[357561218,1744156252882,-490.0,0.00049315,120]
[357561219,1744156252891,-164.322097,0.00049315,120]
[357561220,1744156252900,-210.210473,0.00049315,120]
[357561221,1744156252910,-1048.978136,0.00049315,120]
[357561222,1744156252919,-921.439492,0.00049315,120]
[357561223,1744156252928,-169.801971,0.00049315,120]
[357561224,1744156252938,-6410.06746,0.00049315,120]
[357561225,1744156252948,-4940.492802,0.00049315,120]
[357561226,1744156252957,-254.74953908,0.00049315,120]
[357561227,1744156252966,-404.17347107,0.00049315,120]
[357561228,1744156252977,-500.0,0.00049315,120]
[357561229,1744156252989,-500.0,0.00049315,120]
[357561230,1744156252999,-500.0,0.00049315,120]
[357561231,1744156253008,-500.0,0.00049315,120]
[357561232,1744156253019,-500.0,0.00049315,120]
[357561233,1744156253028,-746.11,0.00049315,120]
[357561234,1744156253037,-500.0,0.00049315,120]
[357561235,1744156253047,-500.0,0.00049315,120]
[357561236,1744156253058,-500.0,0.00049315,120]
[357561237,1744156253068,-537.93446956,0.00049315,120]
[357561238,1744156253077,-500.0,0.00049315,120]
[357561239,1744156253086,-500.0,0.00049315,120]
[357561240,1744156253095,-500.0,0.00049315,120]
[357561241,1744156253105,-1386.24,0.00049315,120]
[357561242,1744156253114,-500.0,0.00049315,120]
[357561243,1744156253123,-500.0,0.00049315,120]
[357561244,1744156253132,-500.0,0.00049315,120]
[357561245,1744156253142,-500.0,0.00049315,120]
[357561246,1744156253151,-216.86358289,0.00049315,120]
[357561247,1744156253162,-500.0,0.00049315,120]
[357561248,1744156253171,-264.03464559,0.00049315,120]
[357561249,1744156253180,-500.0,0.00049315,120]
[357561250,1744156253189,-500.0,0.00049315,120]
[357561251,1744156253198,-500.0,0.00049315,120]
[357561252,1744156253208,-500.0,0.00049315,120]
[357561253,1744156253218,-500.0,0.00049315,120]
[357561254,1744156253227,-500.0,0.00049315,120]
[357561255,1744156253236,-500.0,0.00049315,120]
[357561256,1744156253245,-500.0,0.00049315,120]
[357561257,1744156253254,-505.33395971,0.00049315,120]
[357561258,1744156253263,-500.0,0.00049315,120]
[357561259,1744156253274,-500.0,0.00049315,120]
[357561260,1744156253283,-482.63295974,0.00049315,120]
[357561261,1744156253292,-500.0,0.00049315,120]
[357561262,1744156253301,-500.0,0.00049315,120]
[357561263,1744156253310,-654.05,0.00049315,2]
[357561264,1744156253319,-500.0,0.00049315,120]
[357561265,1744156253329,-500.0,0.00049315,120]
[357561266,1744156253338,-500.0,0.00049315,120]
[357561267,1744156253347,-500.0,0.00049315,120]
[357561268,1744156253356,-500.0,0.00049315,120]
[357561269,1744156253366,-500.0,0.00049315,120]
[357561270,1744156253375,-500.0,0.00049315,120]
[357561271,1744156253385,-500.0,0.00049315,120]
[357561272,1744156253394,-500.0,0.00049315,120]
[357561273,1744156253403,-500.0,0.00049315,120]
[357561274,1744156253412,-500.0,0.00049315,120]
[357561275,1744156253421,-500.0,0.00049315,120]
[357561276,1744156253430,-500.0,0.00049315,120]
[357561277,1744156253439,-500.0,0.00049315,120]
[357561278,1744156253449,-500.0,0.00049315,120]
[357561279,1744156253458,-500.0,0.00049315,120]
[357561280,1744156253467,-500.0,0.00049315,120]
[357561281,1744156253476,-500.0,0.00049315,120]
[357561282,1744156253485,-500.0,0.00049315,120]
[357561283,1744156253494,-500.0,0.00049315,120]
[357561284,1744156253504,-219.56964371,0.00049315,120]
[357561285,1744156253513,-500.0,0.00049315,120]
[357561286,1744156253523,-500.0,0.00049315,120]
[357561287,1744156253532,-500.0,0.00049315,120]
[357561288,1744156253541,-500.0,0.00049315,120]
[357561289,1744156253550,-500.0,0.00049315,120]
[357561290,1744156253559,-500.0,0.00049315,120]
[357561291,1744156253569,-500.0,0.00049315,120]
[357561292,1744156253578,-500.0,0.00049315,120]
[357561293,1744156253588,-500.0,0.00049315,120]
[357561294,1744156253597,-537.17067853,0.00049315,120]
[357561295,1744156253607,-541.20879962,0.00049315,120]
[357561296,1744156253616,-500.0,0.00049315,120]
[357561297,1744156253625,-500.0,0.00049315,120]
[357561298,1744156253634,-500.0,0.00049315,120]
[357561299,1744156253643,-500.0,0.00049315,120]
[357561300,1744156253652,-500.0,0.00049315,120]
[357561301,1744156253662,-500.0,0.00049315,120]
[357561302,1744156253672,-500.0,0.00049315,120]
[357561303,1744156253681,-500.0,0.00049315,120]
[357561304,1744156253690,-500.0,0.00049315,120]
[357561305,1744156253700,-500.0,0.00049315,120]
[357561306,1744156253709,-568.65,0.00049315,120]
[357561307,1744156253718,-574.64,0.00049315,120]
[357561308,1744156253727,-500.0,0.00049315,120]
[357561309,1744156253737,-500.0,0.00049315,120]
[357561310,1744156253746,-500.0,0.00049315,120]
[357561311,1744156253755,-500.0,0.00049315,120]
[357561312,1744156253763,-500.0,0.00049315,120]
[357561313,1744156253773,-1115.37,0.00049315,120]
[357561314,1744156253783,-500.0,0.00049315,120]
[357561315,1744156253792,-500.0,0.00049315,120]
[357561316,1744156253801,-500.91466699,0.00049315,120]
[357561317,1744156253810,-556.24,0.00049315,120]
[357561318,1744156253821,-527.40549102,0.00049315,120]
[357561319,1744156253830,-500.0,0.00049315,120]
[357561320,1744156253839,-500.0,0.00049315,120]
[357561321,1744156253848,-500.0,0.00049315,120]
[357561322,1744156253857,-500.0,0.00049315,120]
[357561323,1744156253866,-500.0,0.00049315,120]
[357561324,1744156253875,-514.39237686,0.00049315,120]
[357561325,1744156253884,-500.0,0.00049315,120]
[357561326,1744156253893,-500.0,0.00049315,120]
[357561327,1744156253902,-1236.94,0.00049315,120]
[357561328,1744156253911,-500.0,0.00049315,120]
[357561329,1744156253920,-500.0,0.00049315,120]
[357561330,1744156253929,-500.0,0.00049315,120]
[357561331,1744156253938,-500.0,0.00049315,120]
[357561332,1744156253947,-500.0,0.00049315,120]
[357561333,1744156253956,-500.0,0.00049315,120]
[357561334,1744156253965,-500.0,0.00049315,120]
[357561335,1744156253975,-500.0,0.00049315,120]
[357561336,1744156253987,-500.0,0.00049315,120]
[357561337,1744156253996,-500.0,0.00049315,120]
[357561338,1744156254005,-500.0,0.00049315,120]
[357561339,1744156254014,-500.0,0.00049315,120]
[357561340,1744156254023,-500.0,0.00049315,120]
[357561341,1744156254034,-500.0,0.00049315,120]
[357561342,1744156254043,-500.0,0.00049315,120]
[357561343,1744156254051,-549.63544273,0.00049315,120]
[357561344,1744156254060,-1209.84,0.00049315,120]
[357561345,1744156254069,-500.0,0.00049315,120]
[357561346,1744156254078,-500.0,0.00049315,120]
[357561347,1744156254087,-500.0,0.00049315,120]
[357561348,1744156254096,-500.0,0.00049315,120]
[357561349,1744156254106,-500.0,0.00049315,120]
[357561350,1744156254115,-500.0,0.00049315,120]
[357561351,1744156254125,-500.0,0.00049315,120]
[357561352,1744156254133,-500.0,0.00049315,120]
[357561353,1744156254143,-1003.83,0.00049315,120]
[357561354,1744156254152,-581.7364939,0.00049315,120]
[357561355,1744156254161,-500.0,0.00049315,120]
[357561356,1744156254170,-500.0,0.00049315,120]
[357561357,1744156254179,-500.0,0.00049315,120]
[357561358,1744156254188,-191.0528429,0.00049315,120]
[357561359,1744156254197,-500.0,0.00049315,120]
[357561360,1744156254206,-500.0,0.00049315,120]
[357561361,1744156254216,-500.0,0.00049315,120]
[357561362,1744156254225,-500.0,0.00049315,120]
[357561363,1744156254235,-500.0,0.00049315,120]
[357561364,1744156254245,-500.0,0.00049315,120]
[357561365,1744156254254,-500.0,0.00049315,120]
[357561366,1744156254263,-500.0,0.00049315,120]
[357561367,1744156254274,-500.0,0.00049315,120]
[357561368,1744156254284,-500.0,0.00049315,120]
[357561369,1744156254293,-500.0,0.00049315,120]
[357561370,1744156254303,-500.0,0.00049315,120]
[357561371,1744156254312,-519.50730887,0.00049315,120]
[357561372,1744156254321,-500.0,0.00049315,120]
[357561373,1744156254332,-500.0,0.00049315,120]
[357561374,1744156254343,-500.0,0.00049315,120]
[357561375,1744156254353,-500.0,0.00049315,120]
[357561376,1744156254362,-500.0,0.00049315,120]
[357561377,1744156254371,-500.0,0.00049315,120]
[357561378,1744156254381,-500.0,0.00049315,120]
[357561379,1744156254391,-500.0,0.00049315,120]
[357561380,1744156254400,-500.0,0.00049315,120]
[357561381,1744156254410,-500.0,0.00049315,120]
[357561382,1744156254419,-536.8,0.00049315,120]
[357561383,1744156254428,-500.0,0.00049315,120]
[357561384,1744156254438,-500.0,0.00049315,120]
[357561385,1744156254447,-616.84,0.00049315,120]
[357561386,1744156254456,-509.02,0.00049315,120]
[357561387,1744156254466,-500.0,0.00049315,120]
[357561388,1744156254476,-500.0,0.00049315,120]
[357561389,1744156254486,-792.48,0.00049315,10]
[357561390,1744156254496,-500.0,0.00049315,120]
[357561391,1744156254508,-500.0,0.00049315,120]
[357561392,1744156254518,-154.816186,0.00049315,14]
[357561393,1744156254528,-500.0,0.00049315,120]
[357561394,1744156254538,-500.0,0.00049315,120]
[357561395,1744156254547,-500.0,0.00049315,120]
[357561396,1744156254557,-500.0,0.00049315,120]
[357561397,1744156254566,-500.0,0.00049315,120]
[357561398,1744156254576,-500.0,0.00049315,120]
[357561399,1744156254586,-643.31,0.00049315,120]
[357561400,1744156254595,-500.0,0.00049315,120]
[357561401,1744156254605,-500.0,0.00049315,120]
[357561402,1744156254614,-500.0,0.00049315,120]
[357561403,1744156254624,-500.0,0.00049315,120]
[357561404,1744156254633,-500.0,0.00049315,120]
[357561405,1744156254644,-500.0,0.00049315,120]
[357561406,1744156254654,-548.94642003,0.00049315,120]
[357561407,1744156254663,-500.0,0.00049315,120]
[357561408,1744156254673,-500.0,0.00049315,120]
[357561409,1744156254683,-500.0,0.00049315,120]
[357561410,1744156254692,-500.0,0.00049315,120]
[357561411,1744156254701,-500.0,0.00049315,120]
[357561412,1744156254711,-500.0,0.00049315,30]
[357561413,1744156254721,-500.0,0.00049315,120]
[357561414,1744156254730,-500.0,0.00049315,120]
[357561415,1744156254740,-500.0,0.00049315,30]
[357561416,1744156254749,-500.0,0.00049315,120]
[357561417,1744156254759,-500.0,0.00049315,120]
[357561418,1744156254768,-500.0,0.00049315,120]
[357561419,1744156254778,-500.0,0.00049315,120]
[357561420,1744156254788,-500.0,0.00049315,120]
[357561421,1744156254797,-500.0,0.00049315,120]
[357561422,1744156254806,-500.0,0.00049315,120]
[357561423,1744156254815,-151.0,0.00049315,14]
[357561424,1744156254825,-500.0,0.00049315,120]
[357561425,1744156254834,-1489.25,0.00049315,120]
[357561426,1744156254843,-667.7,0.00049315,120]
[357561427,1744156254851,-500.0,0.00049315,120]
[357561428,1744156254861,-500.0,0.00049315,120]
[357561429,1744156254870,-654.61,0.00049315,120]
[357561430,1744156254880,-500.0,0.00049315,120]
[357561431,1744156254890,-500.0,0.00049315,120]
[357561432,1744156254899,-500.0,0.00049315,120]
[357561433,1744156254909,-500.0,0.00049315,120]
[357561434,1744156254918,-589.54,0.00049315,120]
[357561435,1744156254927,-555.77960732,0.00049315,120]
[357561436,1744156254937,-500.0,0.00049315,120]
[357561437,1744156254946,-500.0,0.00049315,120]
[357561438,1744156254956,-500.0,0.00049315,120]
[357561439,1744156254965,-500.0,0.00049315,120]
[357561440,1744156254975,-500.0,0.00049315,120]
[357561441,1744156254987,-396.92426706,0.00049315,120]
[357561442,1744156254998,-711.59,0.00049315,120]
[357561443,1744156255007,-500.0,0.00049315,120]
[357561444,1744156255017,-500.0,0.00049315,120]
[357561445,1744156255027,-500.0,0.00049315,120]
[357561446,1744156255037,-500.0,0.00049315,120]
[357561447,1744156255048,-206.79259894,0.00049315,120]
[357561448,1744156255058,-500.0,0.00049315,120]
[357561449,1744156255071,-172.49123381,0.00049315,120]
[357561450,1744156255081,-500.0,0.00049315,120]
[357561451,1744156255091,-500.0,0.00049315,120]
[357561452,1744156255100,-500.0,0.00049315,120]
[357561453,1744156255110,-500.0,0.00049315,120]
[357561454,1744156255120,-500.0,0.00049315,120]
[357561455,1744156255130,-992.01,0.00049315,120]
[357561456,1744156255139,-500.0,0.00049315,120]
[357561457,1744156255149,-500.0,0.00049315,120]
[357561458,1744156255159,-500.0,0.00049315,120]
[357561459,1744156255169,-500.0,0.00049315,120]
[357561460,1744156255178,-500.0,0.00049315,120]
[357561461,1744156255188,-500.0,0.00049315,120]
[357561462,1744156255198,-500.0,0.00049315,120]
[357561463,1744156255208,-595.05,0.00049315,120]
[357561464,1744156255218,-504.25945787,0.00049315,120]
[357561465,1744156255228,-500.0,0.00049315,120]
[357561466,1744156255237,-500.0,0.00049315,120]
[357561467,1744156255247,-500.0,0.00049315,120]
[357561468,1744156255257,-500.0,0.00049315,120]
[357561469,1744156255266,-500.0,0.00049315,120]